Cogmind - Beta 16 @@@ ROGUE MODE // 2025.12.15 @ 10:52:50 Player: PE-P51 Result: Destroyed by D-53 Grenadier with Mini Grenade Launcher Performance ------------- Evolutions (0) 0 Regions Visited (2) 400 Robots Destroyed (33) 165 Value Destroyed (693) 693 Prototype IDs (5) 100 Alien Tech Used (0) 0 Bonus (49) 49 TOTAL SCORE: 1407 Bonus ------- Follower Combat Kills 67 Friendly Fire -18 Cogmind --------- Core Integrity 0/250 Matter 299/300 Energy 159/160 System Corruption 0% Temperature Cool (4) Movement Treading (480) Ox4 Location -10/Mines Parts ------- > --- POWER (1) -------- Light Nuclear Core > --- PROPULSION (2) --- Light Treads > --- UTILITY (2) ------ Huge Storage Unit > --- WEAPON (2) ------- Light Assault Rifle > --- INVENTORY (25) --- Ion Engine Light Nuclear Core Light Treads Aluminum Leg Aluminum Leg Flight Unit Heat Sink Large Matter Pod (150) Signal Interpreter Terrain Scanner Transport Network Coupler Small Laser Light Assault Rifle Light Assault Rifle Datajack Mining Laser Hammer Peak State ------------ > --- POWER ------------ Light Nuclear Core > --- PROPULSION ------- Light Treads Light Treads > --- UTILITY ---------- Improved Heat Sink Huge Storage Unit > --- WEAPON ----------- Light Assault Rifle Light Assault Rifle > --- INVENTORY -------- Ion Engine Light Treads Aluminum Leg Aluminum Leg Flight Unit Heat Sink Large Matter Pod Signal Interpreter Terrain Scanner Transport Network Coupler Small Laser Light Assault Rifle Datajack Mining Laser Hammer [Rating: 12] Favorites ----------- Power Ion Engine Engine Ion Engine Power Core Light Nuclear Core Propulsion Light Treads Treads Light Treads Leg Aluminum Leg Utility Huge Storage Unit Device Heat Sink Storage Huge Storage Unit Processor Machine Analyzer Protection Light Armor Plating Weapon Light Assault Rifle Energy Gun Small Laser Ballistic Gun Light Assault Rifle Build | -11 -10 -10 ------- Run | Yrd Mat Min Slots Evolved . | . . . Power . | . . . Propulsion . | . . . Utility . | . . . Weapon . | . . . Parts Attached 28 | 6 16 6 Power 4 | 1 2 1 Engine 3 | 1 2 . Core 1 | . . 1 Reactor . | . . . Propulsion 10 | 2 7 1 Treads 3 | . 2 1 Leg 7 | 2 5 . Wheel . | . . . Hover . | . . . Flight . | . . . Utility 7 | 1 4 2 Device 2 | . 1 1 Storage 3 | 1 2 . Processor 1 | . 1 . Hackware . | . . . Protection 1 | . . 1 Artifact . | . . . Weapon 7 | 2 3 2 Energy Gun 2 | 1 1 . Energy Cannon . | . . . Ballistic Gun 5 | 1 2 2 Ballistic Cannon . | . . . Launcher . | . . . Special Weapon . | . . . Impact Weapon . | . . . Slashing Weapon . | . . . Piercing Weapon . | . . . Special Melee Weapon . | . . . Unidentified Prototypes . | . . . Parts Lost 6 | . 2 4 Power . | . . . Propulsion 2 | . . 2 Utility 1 | . . 1 Weapon 3 | . 2 1 Highest Loss Streak 3 | . 1 3 To Critical Strikes . | . . . Average Backups 10 | 2 8 14 Power . | . 1 1 Propulsion 4 | 1 4 4 Utility 2 | . 1 4 Weapon 2 | . 2 3 Tool/Special . | . . . Unused Backups 13 | . 1 12 Power 1 | . . 1 Propulsion 2 | . . 2 Utility 4 | . . 4 Weapon 5 | . 1 4 Tool/Special 1 | . . 1 Average Slot Usage (%) 96 | . 94 99 Engine 11 | . 14 8 Core 2 | . . 5 Treads 19 | . 12 27 Leg 8 | . 15 . Device 8 | . 4 13 Storage 15 | . 16 14 Processor 3 | . 6 . Energy Gun 5 | . 6 3 Ballistic Gun 20 | . 16 24 Peak Build Rating 12 | 6 10 12 Average Rating 8 | 3 8 9 On Entrance 4 | . 6 8 Avg Prop Armor Cover (%) 10 | . 10 . Naked Turns . | . . . Heaviest Build 90 | 13 88 90 Greatest Support 40 | 20 40 40 Greatest Overweight (x) 4 | . 2 4 Average Overweight (x) . | . . 2 Largest Inventory Capacity 25 | 8 25 25 Average Capacity 16 | 6 11 25 Most Carried 17 | 4 10 17 Average Carried 10 | 2 8 14 Final Capacity 25 | 8 25 25 Final Carried 17 | 4 10 17 Class Distribution -------------------- 53% | Scavenger-Mutant 46% | Mutant Dominant Class ---------------- Scavenger-Mutant | -10/Materials Scavenger-Mutant | -10/Mines Resources | -11 -10 -10 ----------- Run | Yrd Mat Min Matter Collected 865 | 47 678 140 Remotely . | . . . Salvage Created 982 | . 754 228 Parts 66 | . 48 18 Haulers Intercepted 1 | . 1 . Recyclers Shooed 1 | . . 1 Parts Field Recycled . | . . . Retrieved Matter . | . . . Parts Self-Destructed . | . . . Prevented . | . . . Parts Restored . | . . . Kills | -11 -10 -10 ------- Run | Yrd Mat Min Combat Hostiles Destroyed 26 | . 17 9 Melee 1 | . . 1 Guns 25 | . 17 8 Classes Destroyed 7 | . 6 1 Worker 2 | . 2 . Builder 2 | . 2 . Tunneler 1 | . . 1 Hauler 1 | . 1 . Mechanic 1 | . 1 . Swarmer 11 | . 6 5 Grunt 15 | . 11 4 Best Kill Streak 5 | . 5 3 Combat Bots Only 3 | . 3 3 Max Kills in Single Turn 2 | . 1 2 Gunslinging . | . . . Exploded . | . . . Melee 1 | . . 1 Uniques/NPCs Destroyed . | . . . Combat | -11 -10 -10 -------- Run | Yrd Mat Min Hostile Shots Fired 148 | . 96 52 Missed 41 | . 30 11 Hits 107 | . 66 41 Projectile 107 | . 66 41 AOE 5 | . . 5 Critical Strikes 3 | . 2 1 Damage Taken 1319 | . 731 588 Core 268 | . 189 79 Absorbed by Shields . | . . . Core Remaining (%) 100 | 100 . . Volleys Fired 114 | . 81 33 Largest 2 | . 2 2 Hottest 60 | . 60 60 Shots Fired 196 | . 131 65 Gun 196 | . 131 65 Cannon . | . . . Launcher . | . . . Special . | . . . Kinetic 167 | . 105 62 Thermal 29 | . 26 3 Explosive . | . . . Electromagnetic . | . . . Robot Hit Streak 20 | . 20 12 Robot Miss Streak 6 | . 6 4 Penetration Max . | . . . Secondary Targets 1 | . 1 . Max Gunslinging Chain 1 | . 1 . Shots Hit Robots 132 | . 85 47 Core Hits 58 | . 37 21 Critical Kills 1 | . 1 . Critical Parts Destroyed . | . . . Critical Strikes 1 | . 1 . Destroy 1 | . 1 . Melee Attacks . | . . . Impact . | . . . Slashing . | . . . Piercing . | . . . Sneak Attacks . | . . . Combat Hostiles . | . . . Follow-up Attacks . | . . . Damage Inflicted 1340 | . 875 465 Guns 1277 | . 845 432 Cannons . | . . . Explosions . | . . . Melee . | . . . Ramming 63 | . 30 33 Kinetic 1040 | . 641 399 Thermal 237 | . 204 33 Explosive . | . . . Electromagnetic . | . . . Impact . | . . . Slashing . | . . . Piercing . | . . . Highest Corruption . | . . . Average Corruption . | . . . Corruption Purged . | . . . Corruption Blocked . | . . . Overload Shots . | . . . Overflow Damage . | . . . Projectiles . | . . . Explosions . | . . . Melee . | . . . Knockbacks 1 | . . 1 Impact 1 | . . 1 Kinetic . | . . . Secondary . | . . . Self-Inflicted Damage . | . . . Shots . | . . . Rammed 8 | . 1 7 Targets Rammed 12 | . 3 9 Kicked 2 | . 2 . Crushed 2 | . . 2 Highest Temperature 82 | . 82 60 Average Temperature 26 | . 28 22 Received Heat Transfer 465 | . 288 177 Siege Activations . | . . . Martial Activations . | . . . Shielding Activations . | . . . Robots Disrupted . | . . . Combat Hostiles . | . . . Robots Corrupted . | . . . Combat Hostiles . | . . . Parts Fried . | . . . Impact Corruptions . | . . . Robots Melted . | . . . Combat Hostiles . | . . . Parts Melted . | . . . Heat Transferred 525 | . 450 75 Parts Sabotaged . | . . . Parts Stolen . | . . . Parts Stripped . | . . . Power Chain Reactions . | . . . Alert | -11 -10 -10 ------- Run | Yrd Mat Min Maximum Alert Level . | . . . Low Security (%) 100 | 100 100 100 Level 1 . | . . . Level 2 . | . . . Level 3 . | . . . Level 4 . | . . . Level 5 . | . . . High Security . | . . . Max Security . | . . . Peak Influence 161 | . 143 161 Initial 19 | . . 19 Average 59 | . 71 47 Influence Increases 897 | . 544 353 Destroy 0b10 Robot/C 580 | . 340 240 Destroy 0b10 Robot/NC 35 | . 30 5 Destroy Leader 112 | . 62 50 Allied During Kill 13 | . . 13 Successful Hack 22 | . 22 . Select Force Hacks 60 | . 60 . Lose Combat Pursuer 75 | . 30 45 Influence Decreases 849 | . 492 357 Entered New Map 33 | . . 33 Time Decay 746 | . 472 274 Lost Part 50 | . 20 30 Lost Ally 20 | . . 20 Squads Dispatched 4 | . 4 . Investigation 4 | . 4 . Extermination . | . . . Reinforcement . | . . . Assault . | . . . Garrison . | . . . Intercept . | . . . Searches Triggered . | . . . Construction Impeded . | . . . Haulers Reinforced . | . . . Active Scanning Responses . | . . . Cargo Convoy Interrupts . | . . . Stealth | -11 -10 -10 --------- Run | Yrd Mat Min Distress Signals . | . . . Communications Jammed . | . . . Distress Signals . | . . . Times Spotted 46 | . 28 18 Peak Tracking Total 5 | . 4 5 Tactical Retreats 3 | . 1 2 Traps | -11 -10 -10 ------- Run | Yrd Mat Min Traps Triggered 1 | . 1 . Indirectly . | . . . Trap Hack Attempts . | . . . Triggered . | . . . Disarmed . | . . . Reprogrammed . | . . . Reused . | . . . Traps Extracted . | . . . Installed . | . . . Triggered . | . . . Machines | -11 -10 -10 ---------- Run | Yrd Mat Min Machines Disabled . | . . . Max in Single Turn . | . . . Machines Repaired . | . . . Machines Dismantled . | . . . Machines Sabotaged . | . . . Overloaded Fab Kills . | . . . Hacking | -11 -10 -10 --------- Run | Yrd Mat Min Machines Accessed 9 | . 9 . Terminals 7 | . 7 . Fabricators . | . . . Repair Stations . | . . . Recycling Units 2 | . 2 . Scanalyzers . | . . . Garrison Access . | . . . Total Hacks 22 | . 22 . Successful 12 | . 12 . Failed 9 | . 9 . Catastrophic 1 | . 1 . Database Lockouts 1 | . 1 . Manual 9 | . 9 . Terminals 17 | . 17 . Fabricators . | . . . Repair Stations . | . . . Recycling Units 5 | . 5 . Scanalyzers . | . . . Garrison Access . | . . . Terminal Hacks 7 | . 7 . Robot Analysis 1 | . 1 . Prototype ID Bank 3 | . 3 . Alert Level 1 | . 1 . Locate Traps 1 | . 1 . Hauler Manifests 1 | . 1 . Fabricator Hacks . | . . . Repair Station Hacks . | . . . Recycling Unit Hacks 2 | . 2 . Retrieve Components 2 | . 2 . Scanalyzer . | . . . Garrison Access Hacks . | . . . Unauthorized Hacks 3 | . 3 . Terminals 1 | . 1 . Operators 1 | . 1 . Fabricators . | . . . Repair Stations . | . . . Recycling Units 2 | . 2 . Tunnel 2 | . 2 . Scanalyzers . | . . . Garrison Access . | . . . Data Cores Recovered . | . . . Used . | . . . Hacking Detections 8 | . 8 . Full Trace Events 3 | . 3 . Feedback Events . | . . . Feedback Blocked . | . . . Robot Schematics Acquired . | . . . Robots Built . | . . . Authchips . | . . . Time . | . . . Total Robot Build Rating . | . . . Part Schematics Acquired . | . . . Parts Built . | . . . Authchips . | . . . Time . | . . . Total Part Build Rating . | . . . Part Studies Acquired . | . . . Parts Repaired . | . . . Time . | . . . Parts Recycled . | . . . Recycled Matter . | . . . Retrieved Matter . | . . . Retrieved Components 19 | . 19 . Parts Scanalyzed . | . . . Part Schematics Acquired . | . . . Parts Damaged . | . . . Bothacking | -11 -10 -10 ------------ Run | Yrd Mat Min Used RIF Installer . | . . . Robots Hacked . | . . . Non-combat . | . . . Combat . | . . . Robot Hacks Applied . | . . . Relay Couplers Released . | . . . Fabnet Peak Effective % . | . . . Robots Rewired . | . . . Allies Hacked . | . . . Hacks Repelled . | . . . Allies | -11 -10 -10 -------- Run | Yrd Mat Min Total Allies 1 | . . 1 Largest Group 1 | . . 1 Highest-Rated Group 31 | . . 31 Highest-Rated Ally 31 | . . 31 Total Orders . | . . . Ally Attacks 16 | . . 16 Total Damage 189 | . . 189 Kills 3 | . . 3 Allies Corrupted . | . . . Allies Melted . | . . . Intel | -11 -10 -10 ------- Run | Yrd Mat Min Active Infowar (turns) 829 | . 829 . Machine Analysis 829 | . 829 . Robot Analysis Total 1 | . 1 . Derelict Logs Recovered 1 | . . 1 Drone Launches . | . . . Drone Recoveries . | . . . Exploration | -11 -10 -10 ------------- Run | Yrd Mat Min Turns Passed 3245 | 71 1769 1405 Spaces Moved 1448 | 54 999 395 Core 9 | 9 . . Treads 817 | . 422 395 Legs 622 | 45 577 . Wheels . | . . . Hover . | . . . Flight . | . . . Fastest Speed 50 | 50 120 320 Average Speed 195 | 108 150 322 Slowest Speed 480 | 120 320 480 Overloaded Moves . | . . . Propulsion Burnouts . | . . . Robots Hopped . | . . . Potential Cave-ins . | . . . Cave-ins Triggered . | . . . Exploration Rate (%) 59 | 5 99 74 Regions Visited 2 Branch Regions 1 Pre-discovered Areas 2 | . 2 . Known Exits Taken . | . . . Unknown Exits Taken 2 | 1 1 . Scrap Searched 3 | . . 3 Spaces Dug . | . . . Terrain Destroyed . | . . . Melee . | . . . Projectile . | . . . AOE . | . . . Terrain Rammed . | . . . Walls Destroyed . | . . . Machines Disabled . | . . . Actions | -11 -10 -10 --------- Run | Yrd Mat Min Total 1660 | 63 1144 453 Wait 34 | . 30 4 Move 1446 | 53 998 395 Hop . | . . . Pick Up 15 | 4 5 6 Fast Attach 9 | 6 3 . Attach 2 | . 1 1 Detach 1 | . 1 . Swap 19 | . 14 5 Drop 8 | . 8 . Fire 114 | . 81 33 Melee . | . . . Ram . | . . . Kick 2 | . 2 . Crush 10 | . 1 9 Escape Stasis . | . . . Rewire . | . . . Trap . | . . . Miscellaneous . | . . . Route ------- -11/Scrapyard -10/Materials (discovered 6 exits: [*Mat x3] / [*Min x2] / [*Sub]) -10/Mines (discovered 3 exits: [*Mat] / [*Exi] / [*Sub]) History --------- Turn | Location | Event 14 | -11/Scrapyard | Discovered new exit (range 16) 72 | -11/Scrapyard | Entered Materials 257 | -10/Materials | Discovered new exit (range 8) 313 | -10/Materials | Build established: Mutant 492 | -10/Materials | Discovered new exit (range 16) 632 | -10/Materials | Central database locked down 765 | -10/Materials | Core integrity fell below 50% 815 | -10/Materials | Discovered new exit (range 12) 931 | -10/Materials | Discovered new exit (range 5) 985 | -10/Materials | Discovered new exit (range 8) 1011 | -10/Materials | Build established: Scavenger-Mutant 1123 | -10/Materials | Discovered new exit (range 7) 1841 | -10/Materials | Entered Mines 1916 | -10/Mines | Build established: Mutant 2220 | -10/Mines | Deemed a non-threat by the Exiles lab entrance 2223 | -10/Mines | Discovered new exit (range 5) 2284 | -10/Mines | Escorted by a lone wolf Derelict 2497 | -10/Mines | Build established: Scavenger-Mutant 2585 | -10/Mines | Core integrity fell below 20% 2859 | -10/Mines | Discovered new exit (range 8) 2900 | -10/Mines | Learned Materials stockpile data 2964 | -10/Mines | Discovered new exit (range 11) 3225 | -10/Mines | Assembled infested the area 3246 | -10/Mines | Destroyed by D-53 Grenadier with Mini Grenade Launcher Last Messages --------------- all these Unaware tunnelers." 03217_ "Blame H1-IDC, who apparently didn't care about the consequences of repeatedly making a mess in Materials. Shooting at robots and generally destroying stuff raised the alert level high enough to trigger assault squads over in the main complex, and they later decided the best way to defend their interests would be to start expanding in this direction." 03217_ K-01 Serf collects debris. 03225_ ALERT: Infestation in the mines, dispatching Demolisher response squad. 03229_ K-01 Serf collects debris. 03234_ Acquired Lgt. Nuclear Core. 03236_ K-01 Serf collects debris. 03243_ C-45 Heavy ARC bursts open, deploying its payload. 03243_ D-53 Grenadier unfolds itself. 03243_ K-01 Serf destroyed. 03244_ Lgt. Armor Plating destroyed. 03244_ Lgt. Assault Rifle destroyed. 03244_ Y7-XGD(g): "Mission, incomplete...*fzzt*" 03244_ Y7-XGD(g) destroyed. 03246_ Lgt. Treads destroyed. Map ----- +----------------------------------------------------+ | ##### # """ ##???????????????# ##??# ##? | | ##??#=## ##????????????????# ##??# #? | | #??#=### ##?????????????????# ##?# #? | | #??# #?## ##?????????????????## ## #? | | #??# #??# #?????????????????## #?? | | ##??# #??## ##?????????????????# #?? | | ????# #???## #??????????????????# #?? | | ????#%#????# #??????????????????# #?? | | ????# #????? #??????????????????# #?? | | ????# #????? #??????????????????# #?? | | ????# #????? #??????????????????# ## #?? | | ????# #????? #??????????????????## ##?# ##?? | | ????# #????? #???????????????????#####??? ##??? | | ????# #?????????????????????????????????? ##???? | | ##### #??????????????????????????????????? #????? | | # #??????????????###??????###????????? #????? | | # #####????????????## ????# #????????? ????? | | #=#???????????????? ???# ??????????? ???? | | #*#???????????????? #?## ???????????? ???? | | #%#???????????????? #??# #????????????? #???? | | #%#??????????????## ##??# ##????????????##???? | | #[#???????????#### ## ### ##????????????????? | | %*#??????????## ## #????????????????? | | #%##????????## ## #????????????????? | | * ##???????# r k### #????????????????? | | ######### %d* @ ##????????????????? | | d*% #?????????????????? | | !## #?????????????????? | | ####### ! #### # #?????????????????? | | ##????# ###??##### ##? ????????????????? | | #????## =##?????????###???? #??????????????? | | #?????# #??????????????????#??????????????? | | ## ##????# ?????????????????????????????????? | | ?## #?????# ????????????????????????????????? | | ??# #?????# ???????????????????????????????? | | ??# #?????## ###??????????????????????????????? | | #?# #??????## ##????????????????????????????????? | | ### #???????####?????????????????????????????????? | | ## #????????????????????????????????????????????? | | ##???????????????????????????????????????????? | | #???????????????????????????????????????????? | | ##??????????????????????????????????????????? | | ##?????????????????????????????????????????? | | # < #?????????????????????????????????????????? | | ## #?????????????????????????????????????????? | | ?## #????????????????????????????????????????? | | ??## #????????????????????????????????????????? | | ???## ##????????????????????????????????????????? | | ?????###?????????????????????????????????????????? | | ?????????????????????????????????????????????????? | +----------------------------------------------------+ Best States ------------- Heat Dissipation 39 Energy Generation 14 Energy Capacity 250 Matter Stores 300 Matter Capacity 300 Sight Range 16 Terrain Scan Density 10 Armor Coverage 150 Evasion (%) 55 Recoil Reduction 2 Item Schematics ----------------- None Robot Schematics ------------------ None Fabricated ------------ Nothing Repaired ---------- Nothing Studied --------- None Alien Tech Used ----------------- None Achievements -------------- None Challenges ------------ None Game ------ Seed AssemblyNetworkAirjet Manual? 0 Play Time 00:12:12 Cumulative 180.3 hours Start 2025.12.14 @ 22:03:37 End 2025.12.15 @ 10:52:50 Sessions 2 Manual Loads 0 Difficulty Rogue Special Mode None Game No. 267 Rogue 267 Adventurer 0 Explorer 0 Win Type - Total 1 Types 1/0/0/0/0/0/0/0/0/0 Lore% 61 Gallery% 58 Achievement% 50 Wizard Run 0 Options --------- Layout 0 ASCII 0 Keyboard 0 Movement Numpad Keybinds 0 Fullscreen 1 Font 24/Smallcaps Map View 76x50 Zoom Use 0% Tactical HUD 1 Map Filters NONE Filters NONE Steam 1 RUN: 6320eec4-68fc-472d-b677-fb5160028494